bitfinex/quotes_ETHUSD_20241018
["timestamp","ask_amount","ask_price","bid_price","bid_amount"]
[1729238291949,0.458339,2645.6,2644.8,0.7807]
[1729238291950,3.78029,2645.3,2644.8,0.7807]
[1729238292245,3.78052,2645.2,2644.8,0.7807]
[1729238292451,3.78066,2645.1,2644.8,0.7807]
[1729238292946,3.78038,2645.3,2644.8,0.7807]
[1729238293148,3.78038,2645.3,2644.8,4.56158]
[1729238293501,3.78038,2645.3,2644.8,0.7807]
[1729238294116,3.7806,2645.1,2644.8,0.7807]
[1729238294334,3.78081,2645.0,2644.5,4.5445]
[1729238294533,3.78033,2645.3,2644.6,0.0756177]
[1729238294734,3.78047,2645.2,2644.7,3.7811]
[1729238295247,3.78047,2645.2,2644.6,3.8567677]
[1729238295456,3.78047,2645.2,2644.5,0.7632]
[1729238295666,3.78047,2645.2,2644.7,3.78114]
[1729238295945,3.78057,2645.1,2644.6,3.85679767]
[1729238296647,3.78057,2645.1,2644.5,0.7632]
[1729238296805,3.7808,2645.0,2644.5,0.7632]
[1729238297517,3.7808,2645.0,2644.5,4.54459]
[1729238297951,3.78122,2644.7,2644.3,0.05674501]
[1729238298488,3.7818,2644.3,2643.9,0.7952]
[1729238298668,3.78193,2644.2,2643.9,0.7952]
[1729238298980,0.7735,2644.6,2643.8,0.05675471]
[1729238299138,3.78158,2644.4,2643.9,3.7822]
[1729238299477,4.55492,2644.6,2643.9,3.7822]
[1729238299687,3.78146,2644.5,2643.9,3.7822]
[1729238300053,3.78158,2644.4,2643.9,3.7822]
[1729238300566,3.78202,2644.1,2643.7,0.7952]
[1729238300784,3.7821,2644.1,2643.7,0.7952]
[1729238301134,4.57368,2644.2,2643.7,0.7952]
[1729238301377,3.78202,2644.1,2643.7,0.7952]
[1729238301582,3.78202,2644.1,2643.5,0.8207]
[1729238301737,0.7978,2644.0,2643.2,4.60399]
[1729238301937,3.78238,2643.9,2643.4,3.78297]
[1729238302151,0.7978,2644.0,2643.5,3.78278]
[1729238302355,3.78202,2644.1,2643.6,3.78263]
[1729238303265,3.78217,2644.0,2643.5,3.78284]
[1729238303681,3.78202,2644.1,2643.5,3.78284]
[1729238303840,3.78202,2644.1,2643.5,3.78275]
[1729238304386,3.78202,2644.1,2643.4,3.78297]
[1729238304387,3.7823,2643.9,2643.4,3.78297]
[1729238304566,3.78214,2644.0,2643.5,3.78282]
[1729238304773,3.78229,2643.9,2643.3,4.33303]
[1729238305281,3.78229,2643.9,2643.4,3.7829]
[1729238305864,4.59382,2643.8,2643.2,4.60389]
[1729238306061,3.78259,2643.7,2643.2,4.60389]
[1729238306476,4.59382,2643.8,2643.2,4.60389]
[1729238306677,4.59382,2643.8,2643.3,3.78307]
[1729238307072,4.59382,2643.8,2643.2,4.60389]
[1729238307388,4.59382,2643.8,2643.2,0.8207]
[1729238307712,0.8113,2643.5,2643.0,0.05677179]
[1729238307878,3.78308,2643.4,2642.9,3.78368]
[1729238308077,3.78308,2643.4,2642.8,3.78372]
[1729238308304,3.783,2643.4,2642.6,4.56436]
[1729238308600,3.78329,2643.2,2642.6,4.56436]
[1729238308964,3.78329,2643.2,2642.6,0.7803]
[1729238308965,3.78358,2643.0,2642.6,0.7803]
[1729238309591,3.78335,2643.2,2642.6,0.7803]
[1729238309796,3.78346,2643.1,2642.6,0.7803]
[1729238310206,3.78346,2643.1,2642.6,4.56443]
[1729238310507,3.78335,2643.2,2642.7,3.78392]
[1729238310801,3.78335,2643.2,2642.6,0.7803]
[1729238311008,3.78309,2643.4,2642.8,3.78375]
[1729238311156,7.56619,2643.4,2642.8,3.78375]
[1729238311358,3.78322,2643.3,2642.8,3.78375]
[1729238311876,4.60209,2643.2,2642.7,0.8128]
[1729238312079,3.78315,2643.3,2642.8,3.78385]
[1729238314212,3.78315,2643.3,2642.7,4.59674]
[1729238314409,4.60161,2643.5,2642.8,3.78377]
[1729238314561,4.60161,2643.5,2642.9,3.7837]
[1729238314760,3.78303,2643.4,2642.9,3.7837]
[1729238314982,4.60161,2643.5,2642.9,3.7837]
[1729238315392,4.60161,2643.5,2642.9,3.78372]
[1729238316092,4.60161,2643.5,2642.8,3.85943642]
[1729238316093,3.78291,2643.5,2642.8,3.85943642]
[1729238316280,3.78291,2643.5,2642.9,3.78368]
[1729238316605,3.78301,2643.4,2642.9,3.78368]
[1729238316904,7.56589,2643.5,2642.9,3.78368]
[1729238317077,3.78291,2643.5,2642.9,3.85934617]
[1729238317279,3.78291,2643.5,2643.0,3.7835]
[1729238317662,4.57798,2643.9,2643.1,0.8146]
[1729238317905,4.57798,2643.9,2643.2,3.78329]
[1729238318610,4.57798,2643.9,2643.3,3.78307]
[1729238318917,11.1321,2644.1,2643.5,3.78285]
[1729238319215,0.8035,2644.2,2643.5,4.61478]
[1729238319361,7.56416,2644.1,2643.5,4.61478]
[1729238319557,3.78208,2644.1,2643.5,4.61478]
[1729238320163,4.56746,2644.0,2643.3,3.78304]
[1729238320494,4.56746,2644.0,2643.4,3.783]
[1729238320893,4.56746,2644.0,2643.4,3.85865168]
[1729238321422,8.34973,2644.0,2643.4,3.783]
[1729238321626,4.56746,2644.0,2643.5,3.78282]
[1729238321808,4.56746,2644.0,2643.5,3.78279]
[1729238323995,8.3497,2644.0,2643.5,3.78279]
[1729238324434,8.34973,2644.0,2643.5,3.78279]
[1729238324728,4.56746,2644.0,2643.5,3.78279]
[1729238324931,4.56746,2644.0,2643.5,7.56556]
[1729238325087,4.56746,2644.0,2643.5,3.78277]
[1729238325285,0.7853,2644.0,2643.6,3.78269]
[1729238325590,3.78196,2644.2,2643.6,0.814]
[1729238325591,4.57936,2644.2,2643.6,0.814]
[1729238325778,4.57936,2644.2,2643.7,3.78254]
[1729238325983,3.78202,2644.1,2643.7,3.78256]
[1729238326527,3.78202,2644.1,2643.6,0.814]
[1729238327027,3.78202,2644.1,2643.6,4.59671]
[1729238327398,3.78216,2644.0,2643.6,4.59671]
[1729238327625,3.78202,2644.1,2643.5,3.7828]
[1729238327834,3.78202,2644.1,2643.5,3.78273]
[1729238328048,3.78202,2644.1,2643.6,3.78267]
[1729238328737,3.78226,2644.0,2643.5,3.78286]
[1729238329712,3.78229,2643.9,2643.4,3.783]
[1729238329916,3.78229,2643.9,2643.4,3.0]
[1729238330098,3.78229,2643.9,2643.4,6.78286]
[1729238330704,0.8249,2644.0,2643.5,3.78285]
[1729238330909,4.60714,2644.0,2643.5,3.78285]
[1729238331320,0.8249,2644.0,2643.6,3.78269]
[1729238332306,0.8249,2644.0,2643.6,3.78264]
[1729238332715,0.8249,2644.0,2643.6,7.56524]
[1729238333042,0.8249,2644.0,2643.6,3.7826]
[1729238333758,0.8249,2644.0,2643.6,7.56525]
[1729238333958,0.8249,2644.0,2643.6,3.7826]
[1729238334102,0.8249,2644.0,2643.4,6.7829]
[1729238334302,0.8249,2644.0,2643.2,3.77703047]
[1729238334509,0.8249,2644.0,2643.4,3.78291]
[1729238334812,0.8249,2644.0,2643.6,3.78268]
[1729238335012,0.8249,2644.0,2643.6,3.78264]
[1729238336082,0.8249,2644.0,2643.6,7.56527]
[1729238336577,0.8249,2644.0,2643.6,7.56526]
[1729238337585,0.8249,2644.0,2643.6,3.78263]
[1729238337758,0.8249,2644.0,2643.7,3.78256]
[1729238338643,0.8249,2644.0,2643.3,1.32703047]
[1729238338873,0.8249,2644.0,2643.6,3.78261]
[1729238339071,0.8249,2644.0,2643.7,3.7825]
[1729238339454,0.8249,2644.0,2643.3,1.74540686]
[1729238339669,0.8249,2644.0,2643.6,3.78265]
[1729238340254,0.8249,2644.0,2643.7,3.7825]
[1729238340466,0.8249,2644.0,2643.6,3.78265]
[1729238340668,0.8249,2644.0,2643.3,0.85268345]
[1729238340978,0.8249,2644.0,2643.6,3.78272]
[1729238341181,0.8249,2644.0,2643.7,3.78255]
[1729238342369,0.8249,2644.0,2643.7,3.78247]
[1729238342565,0.8249,2644.0,2643.8,3.78239]
[1729238343219,3.68316259,2644.4,2643.8,0.96956659]
[1729238343220,0.7774,2644.4,2643.8,0.96956659]
[1729238343433,3.78179,2644.3,2643.7,3.78244]
[1729238343571,3.78179,2644.3,2643.8,3.7824]
[1729238344351,3.78196,2644.2,2643.6,4.55233]
[1729238344506,3.7798,2645.7,2644.2,7.34186]
[1729238344821,0.7877,2645.6,2645.0,3.78061]
[1729238345117,0.7877,2645.6,2644.9,0.7879]
[1729238345118,0.45675,2645.5,2645.1,3.78054]
[1729238345416,0.7877,2645.6,2645.3,3.7802]
[1729238345714,0.7877,2645.6,2645.2,3.78042]
[1729238346216,0.7877,2645.6,2645.3,3.78024]
[1729238347514,0.7877,2645.6,2645.1,3.78047]
[1729238347910,0.7877,2645.6,2645.2,3.78041]
[1729238348214,0.7877,2645.6,2645.1,3.78047]
[1729238348508,0.7877,2645.6,2645.1,3.78046]
[1729238348700,0.7877,2645.6,2645.2,3.78038]
[1729238349100,0.7877,2645.6,2645.3,3.78028]
[1729238349517,0.7877,2645.6,2645.3,3.78019]
[1729238349677,2.76099539,2645.8,2645.4,3.78009]
[1729238350005,2.76099539,2645.8,2645.5,3.77999]
[1729238351911,2.76099539,2645.8,2645.5,7.55989]
[1729238352124,2.76099539,2645.8,2645.6,3.77985]
[1729238352416,2.76099539,2645.8,2645.7,3.77971]
[1729238358041,2.76099539,2645.8,2645.7,6.77971]
[1729238359559,3.77887,2646.3,2645.8,3.77948]
[1729238359919,3.77887,2646.3,2645.6,0.55]
[1729238360165,3.77887,2646.3,2645.8,3.77955]
[1729238360871,0.7509,2646.2,2645.4,3.7739]
[1729238361165,3.77914,2646.1,2645.5,3.77998]
[1729238361319,4.5299,2646.2,2645.7,3.77969]
[1729238361948,3.77915,2646.1,2645.6,0.07559373]
[1729238362129,3.77915,2646.1,2645.5,3.77992]
[1729238362342,7.55837,2646.1,2645.5,3.77992]
[1729238362706,4.53004,2646.2,2645.6,3.85536893]
[1729238362986,0.7509,2646.2,2645.7,4.56641]
[1729238363145,0.7509,2646.2,2645.8,3.77957]
[1729238363351,0.7509,2646.2,2645.7,8.34595]
[1729238363982,0.7509,2646.2,2645.7,8.34594]
[1729238364280,0.7509,2646.2,2645.7,4.56632]
[1729238364577,0.7509,2646.2,2645.7,8.34595]
[1729238364885,0.7509,2646.2,2645.7,4.56632]
[1729238365577,4.52998,2646.2,2645.7,4.56632]
[1729238366482,0.7509,2646.2,2645.7,8.34596]
[1729238366638,0.7509,2646.2,2645.7,4.56632]
[1729238366835,4.53004,2646.2,2645.7,4.56632]
[1729238367071,0.7509,2646.2,2645.7,4.56632]
[1729238367385,4.52999,2646.2,2645.7,3.77962]
[1729238368941,3.77924,2646.1,2645.5,3.77993]
[1729238369142,3.77924,2646.1,2645.5,3.77991]
[1729238369437,3.77924,2646.1,2645.5,7.55982]
[1729238369623,3.77924,2646.1,2645.6,3.77983]
[1729238371154,3.77914,2646.1,2645.6,3.77984]
[1729238371459,4.53001,2646.2,2645.6,3.77986]
[1729238371669,3.77917,2646.1,2645.6,3.77986]
[1729238372322,4.5299,2646.2,2645.7,3.7796]
[1729238374060,3.77914,2646.1,2645.7,3.7796]
[1729238374259,0.7509,2646.2,2645.7,3.7796]
[1729238374494,0.7509,2646.2,2645.6,3.77983]
[1729238374702,4.5299,2646.2,2645.6,0.07558897]
[1729238374848,4.5299,2646.2,2645.7,3.77962]
[1729238375191,4.5299,2646.2,2645.7,3.77961]
[1729238375391,4.5299,2646.2,2645.8,3.77957]
[1729238375577,4.5299,2646.2,2645.7,3.77961]
[1729238375779,0.7509,2646.2,2645.7,3.77961]
[1729238375984,0.7509,2646.2,2645.8,3.77954]
[1729238376896,0.8151,2646.7,2646.0,3.77921]
[1729238377068,3.77845,2646.6,2646.1,3.77907]
[1729238377284,0.8151,2646.7,2645.9,3.774]
[1729238377484,4.59381,2646.4,2645.9,3.77941]
[1729238378393,4.59382,2646.4,2645.9,3.77941]
[1729238378604,4.59382,2646.4,2645.9,7.55876]
[1729238378898,4.59382,2646.4,2645.8,3.77948]
[1729238379462,8.37265,2646.4,2645.8,3.77948]
[1729238379691,8.37264,2646.4,2645.8,3.77948]
[1729238379994,8.37264,2646.4,2645.7,3.77971]
[1729238379995,4.59382,2646.4,2645.9,3.7794]
[1729238380476,3.77886,2646.3,2645.7,3.77958]
[1729238380788,4.59382,2646.4,2645.6,0.07558728]
[1729238380948,4.59382,2646.4,2645.7,3.77971]
[1729238381149,4.59382,2646.4,2645.9,3.77941]
[1729238381554,4.58866,2646.3,2645.9,3.77934]
[1729238382503,0.8098,2646.3,2645.9,7.55869]
[1729238382654,4.58866,2646.3,2645.9,3.77934]
[1729238383055,0.8098,2646.3,2645.9,3.77934]
[1729238383362,4.58869,2646.3,2645.7,7.55925]
[1729238383710,4.58869,2646.3,2645.7,3.77962]
[1729238383860,4.58869,2646.3,2645.8,3.77955]
[1729238384056,3.77916,2646.1,2645.7,3.0]
[1729238384893,4.57912,2646.2,2645.7,3.0]
[1729238385097,3.77915,2646.1,2645.7,3.0]
[1729238385254,4.57911,2646.2,2645.7,6.77964]
[1729238385898,7.46147259,2646.7,2645.9,0.55]
[1729238385899,0.7954,2646.7,2645.9,0.55]
[1729238386052,0.7954,2646.7,2646.3,3.77876]
[1729238386878,4.57369,2646.7,2646.1,3.77904]
[1729238387051,0.7954,2646.7,2646.1,3.77904]
[1729238387254,0.7848,2646.5,2646.0,3.77927]
[1729238387490,0.7848,2646.5,2645.9,3.77932]
[1729238387695,4.56346,2646.5,2645.9,3.77937]
[1729238387992,3.77872,2646.4,2645.9,3.77937]
[1729238388872,0.7848,2646.5,2646.0,3.77923]
[1729238389070,4.56338,2646.5,2646.0,3.77923]
[1729238389596,3.77873,2646.4,2645.9,7.7464566]
[1729238389761,3.77873,2646.4,2645.9,6.77942]
[1729238389956,0.7848,2646.5,2645.9,3.0]
[1729238390189,0.7848,2646.5,2646.1,3.77911]
[1729238390409,0.7848,2646.5,2646.1,4.74765652]
[1729238391168,0.7848,2646.5,2646.2,0.96854652]
[1729238391503,3.77824,2646.8,2646.2,0.96854652]
[1729238391703,0.11742613,2646.9,2646.3,0.96854652]
[1729238391704,0.7657,2646.7,2646.3,0.96854652]
[1729238391870,0.7657,2646.7,2646.4,3.77862]
[1729238392072,0.7657,2646.7,2646.5,3.77855]
[1729238393866,0.7657,2646.7,2646.4,3.77871]
[1729238394070,0.7657,2646.7,2646.3,0.96855299]
[1729238394291,0.7657,2646.7,2646.2,0.96855299]
[1729238394490,3.77843,2646.6,2646.1,5.5249312]
[1729238394680,7.55696,2646.6,2646.1,5.5249312]
[1729238394891,3.77858,2646.5,2646.1,1.7457912]
[1729238395089,4.59879,2646.4,2646.0,1.7457912]
[1729238395407,4.59879,2646.4,2646.0,0.96855299]
[1729238396013,8.37758,2646.4,2646.0,0.96855299]
[1729238396184,3.77894,2646.3,2646.0,0.96855299]
[1729238396512,3.77894,2646.3,2645.9,0.96855299]
[1729238397415,3.77895,2646.3,2645.9,0.96855299]
[1729238397713,3.77895,2646.3,2645.8,4.7457912]
[1729238398207,3.77895,2646.3,2645.8,8.5253212]
[1729238398413,3.77895,2646.3,2645.9,0.96975138]
[1729238399973,0.7783,2646.2,2645.9,0.96975138]
[1729238400218,0.7783,2646.2,2645.8,7.55676821]
[1729238400219,0.7783,2646.2,2645.8,3.0]
[1729238400424,4.5573,2646.2,2645.8,4.22865483]
[1729238400715,0.7783,2646.2,2645.8,1.22865483]
[1729238400923,0.7783,2646.2,2645.8,0.44678014]
[1729238400924,3.77943,2645.9,2645.8,0.44678014]
[1729238401072,3.77943,2645.9,2645.7,0.78187469]
[1729238401277,3.77927,2646.1,2645.7,0.78187469]
[1729238401600,3.77939,2646.0,2645.7,0.78187469]
[1729238402318,3.77916,2646.1,2645.7,0.78187469]
[1729238403242,3.77931,2646.0,2645.7,0.78187469]
[1729238404016,0.8184,2645.9,2645.7,0.78187469]
[1729238404605,3.77957,2645.8,2645.7,0.78187469]
[1729238405041,5.41251,2645.8,2645.7,0.78187469]
[1729238405895,9.49073265,2645.8,2645.7,4.69e-06]
[1729238406202,0.7953,2645.6,2645.1,0.7875]
[1729238406537,0.7953,2645.6,2645.1,4.56797]
[1729238407433,3.77972,2645.7,2645.1,4.56797]
[1729238407434,3.77976,2645.7,2645.2,3.7803]
[1729238407640,3.77976,2645.7,2645.1,0.7875]
[1729238407641,7.55957,2645.7,2645.1,0.7875]
[1729238407789,3.78026,2645.4,2644.7,2.46481458]
[1729238407992,0.7896,2645.6,2644.6,5.34497938]
[1729238407993,0.8054,2645.1,2644.6,3.78123]
[1729238408195,4.58599,2645.1,2644.6,3.78123]
[1729238408435,0.8054,2645.1,2644.6,3.78115]
[1729238408639,0.8054,2645.1,2644.6,7.56235]
[1729238408839,0.8054,2645.1,2644.6,3.78115]
[1729238409048,4.58597,2645.1,2644.5,0.96908165]
[1729238409194,4.58597,2645.1,2644.4,3.85711049]
[1729238409195,3.78089,2644.9,2644.4,0.96908165]
[1729238409547,3.78115,2644.7,2644.1,3.7819]
[1729238409745,3.78115,2644.7,2644.1,0.96912596]
[1729238409895,3.78115,2644.7,2644.2,3.78185]
[1729238410096,3.78115,2644.7,2644.1,4.75105596]
[1729238410317,0.8261,2644.8,2644.2,3.8574132]
[1729238410593,0.7747,2645.0,2644.5,3.78142]
[1729238410811,0.7747,2645.0,2644.5,0.07562402]
[1729238411016,0.7747,2645.0,2644.7,3.78113]
[1729238411313,0.7883,2645.4,2644.5,0.7893]
[1729238411512,3.78037,2645.3,2644.7,3.7811]
[1729238411747,4.615245,2645.3,2644.7,3.78106]
[1729238412354,0.834875,2645.3,2644.9,3.78085]
[1729238413157,0.7883,2645.4,2645.1,3.78054]
[1729238413460,0.7883,2645.4,2644.9,3.78077]
[1729238414485,0.7883,2645.4,2644.8,0.07561193]
[1729238414642,4.618467,2645.7,2645.0,0.07561193]
[1729238414643,0.8185,2645.6,2645.0,0.07561193]
[1729238414843,0.8185,2645.6,2644.8,0.55]
[1729238415043,0.8185,2645.6,2645.1,3.78053]
[1729238415044,4.59837,2645.6,2645.1,3.78053]
[1729238415359,0.8185,2645.6,2645.1,3.78053]
[1729238416027,0.8185,2645.6,2645.3,3.78028]
[1729238416358,0.8185,2645.6,2645.1,7.56093]
[1729238416656,0.8185,2645.6,2645.1,3.78045]
[1729238416830,0.8185,2645.6,2645.1,3.78044]
[1729238417253,0.8185,2645.6,2645.3,3.78028]
[1729238418027,3.68316259,2646.2,2645.5,3.78]
[1729238418028,3.77933,2646.0,2645.5,3.78]
[1729238418235,8.018753,2646.0,2645.5,3.78]
[1729238418437,8.018753,2646.0,2645.3,3.78022]
[1729238418438,0.8212,2645.8,2645.3,3.78018]
[1729238418731,4.6008,2645.8,2645.3,3.78018]
[1729238419045,4.6008,2645.8,2645.3,7.56039]
[1729238419248,8.38048,2645.8,2645.1,3.78044]
[1729238419436,8.38048,2645.8,2645.1,3.78051]
[1729238419437,4.617798,2645.7,2645.1,3.78051]
[1729238419615,0.838048,2645.7,2645.1,3.78051]
[1729238419820,0.8212,2645.6,2645.1,3.78051]
[1729238420038,0.8212,2645.6,2645.2,3.78031]
[1729238420446,4.6011,2645.6,2645.0,3.0]
[1729238420625,4.6011,2645.6,2645.1,3.78043]
[1729238420626,0.8212,2645.6,2645.1,3.78043]
[1729238420954,0.8212,2645.6,2645.2,3.78041]
[1729238421985,0.8212,2645.6,2645.1,3.78043]
[1729238422137,5.439124,2645.6,2645.1,3.78043]
[1729238422339,3.78014,2645.4,2644.9,3.78081]
[1729238422536,0.765,2645.3,2644.9,3.78081]
[1729238423251,0.765,2645.3,2644.8,3.7809]
[1729238423432,0.765,2645.3,2644.9,3.85635542]
[1729238423632,0.765,2645.3,2644.9,3.78074]
[1729238423833,0.765,2645.3,2644.7,6.78101]
[1729238424033,3.78045,2645.2,2644.7,10.56208]
[1729238424271,1.219515,2645.3,2644.7,6.78101]
[1729238424430,1.219515,2645.3,2644.8,3.7809]
[1729238424632,0.765,2645.3,2644.9,3.78077]
[1729238424834,0.765,2645.3,2645.1,3.7805]
[1729238425278,0.765,2645.3,2645.0,3.7807]
[1729238425481,0.765,2645.3,2644.9,3.78075]
[1729238425790,0.765,2645.3,2645.0,3.78068]
[1729238426292,0.765,2645.3,2645.1,3.78049]
[1729238426493,0.765,2645.3,2644.9,7.56153]
[1729238426784,0.765,2645.3,2644.7,3.0]
[1729238426785,0.765,2645.3,2645.0,3.78071]
[1729238427305,0.765,2645.3,2645.1,3.7805]
[1729238427898,0.765,2645.3,2644.9,7.56158]
[1729238428057,1.219501,2645.3,2644.8,3.78099]
[1729238428390,0.765,2645.3,2644.9,3.78085]
[1729238428547,4.54536,2645.3,2644.8,3.78095]
[1729238429609,3.7806,2645.1,2644.5,4.56077565]
[1729238429812,1.14006,2645.0,2644.5,4.56077565]
[1729238430108,0.762,2645.0,2644.7,3.78113]
[1729238430309,0.762,2645.0,2644.5,8.34214565]
[1729238430464,3.78087,2644.9,2644.5,0.77945565]
[1729238430670,0.762,2644.8,2644.5,0.77945565]
[1729238430987,0.762,2644.8,2644.1,3.7819]
[1729238431197,0.762,2644.8,2644.2,3.78178]
[1729238431198,1.216292,2644.8,2644.2,3.78178]
[1729238431378,3.78121,2644.7,2644.2,3.78178]
[1729238432077,7.56244,2644.7,2644.2,3.78178]
[1729238432279,7.56249,2644.7,2644.2,3.78178]
[1729238432493,7.56249,2644.7,2644.0,7.46523259]
[1729238432494,4.58391,2644.6,2644.1,3.0]
[1729238432700,5.4658512,2644.6,2644.0,3.78201]
[1729238432928,3.78146,2644.5,2644.0,3.78201]
[1729238433214,0.7603,2644.4,2643.9,3.7822]
[1729238433415,0.7603,2644.4,2644.1,3.78197]
[1729238433619,3.79058,2645.1,2644.2,4.50866259]
[1729238433620,3.78095,2644.9,2644.2,4.50866259]
[1729238433769,1.50767426,2645.0,2644.5,3.78141]
[1729238433969,5.28846426,2645.0,2644.4,3.78147]
[1729238434514,3.78109,2644.8,2644.2,3.78177]
[1729238434815,0.7826,2644.7,2644.2,3.78177]
[1729238435016,0.7826,2644.7,2643.9,8.01542259]
[1729238435173,0.7826,2644.7,2644.5,3.78141]
[1729238436301,0.8016,2644.9,2644.5,3.78141]
[1729238436672,0.8016,2644.9,2644.5,3.78131]
[1729238437177,0.8016,2644.9,2644.3,7.56327]
[1729238437178,4.58247,2644.9,2644.3,7.56327]
[1729238437398,0.458247,2644.8,2644.3,3.7816]
[1729238437587,4.58247,2644.9,2644.3,3.7816]
[1729238437588,4.58247,2644.9,2644.4,3.78154]
[1729238438120,4.58247,2644.9,2644.1,3.78191]
[1729238438316,3.78115,2644.7,2644.2,6.78175]
[1729238438685,4.58247,2644.9,2644.3,3.78163]
[1729238438897,4.58247,2644.9,2644.2,6.78175]
[1729238438898,4.58247,2644.9,2644.2,6.78182]
[1729238439109,3.78116,2644.7,2644.2,3.78182]
[1729238439307,3.78116,2644.7,2644.0,4.59107]
[1729238439478,0.458247,2644.8,2644.0,3.78207]
[1729238439479,0.8014,2644.4,2644.0,3.78207]
[1729238439921,0.8014,2644.4,2644.1,3.78192]
[1729238440281,0.8014,2644.4,2644.2,3.78184]
[1729238440579,0.7658,2645.0,2644.3,0.07563745]
[1729238440832,0.7658,2645.0,2644.5,3.78132]
[1729238440984,4.54659,2645.0,2644.5,3.78132]
[1729238441711,3.78093,2644.9,2644.4,3.78157]
[1729238441913,5.379294,2645.0,2644.2,3.78175]
[1729238441914,3.78112,2644.8,2644.2,3.78175]
[1729238442118,4.54701,2644.7,2644.2,3.78175]
[1729238442487,0.7658,2644.7,2643.9,3.68316259]
[1729238442688,0.7658,2644.9,2644.5,3.78133]
[1729238443093,0.7658,2644.9,2644.4,3.78156]
[1729238443288,3.78014,2645.4,2644.7,3.78104]
[1729238443636,0.7665,2645.2,2644.7,3.78104]
[1729238444086,0.7665,2645.2,2644.3,0.77945565]
[1729238444287,0.7665,2644.8,2644.3,3.78169]
[1729238444605,3.78123,2644.7,2644.0,3.78205]
[1729238444758,4.54792,2644.6,2644.1,3.0]
[1729238444966,4.54792,2644.6,2644.1,6.7819]
[1729238444967,0.7665,2644.6,2644.1,6.7819]
[1729238445658,0.7665,2644.6,2644.2,3.78184]
[1729238446025,0.7665,2644.6,2644.3,3.7816]
[1729238446214,4.55681,2644.8,2644.3,3.7816]
[1729238446419,0.7758,2644.8,2644.4,3.78151]
[1729238447161,0.7758,2644.4,2644.3,3.78171]
[1729238447451,4.55668,2644.9,2644.4,3.78152]
[1729238447629,0.7758,2644.9,2644.4,3.78152]
[1729238448259,0.7758,2644.9,2644.3,7.56332]
[1729238448260,4.55666,2644.9,2644.3,7.56332]
[1729238448480,4.55666,2644.9,2644.3,3.78158]
[1729238448682,5.390406,2644.9,2644.3,3.78158]
[1729238449181,0.7758,2644.9,2644.4,3.78157]
[1729238449486,4.55666,2644.9,2644.4,3.78157]
[1729238450486,0.7758,2644.9,2644.1,0.8318]
[1729238450671,3.78122,2644.7,2644.2,3.78185]
[1729238450985,3.781,2644.8,2644.1,3.78199]
[1729238450986,0.798,2644.5,2644.1,3.78199]
[1729238451185,0.798,2644.5,2644.1,3.78191]
[1729238451388,3.7811,2644.8,2644.0,3.0]
[1729238451389,0.798,2644.7,2644.0,3.0]
[1729238451688,3.78133,2644.6,2644.1,3.7819]
[1729238451880,0.798,2644.7,2644.2,3.78183]
[1729238451881,4.57924,2644.7,2644.2,3.78183]
[1729238452121,5.415259,2644.7,2644.2,3.78183]
[1729238452270,1.634019,2644.7,2643.9,4.56166565]
[1729238452442,3.78195,2644.2,2643.9,0.96911685]
[1729238452638,4.56177,2644.4,2643.7,7.56195565]
[1729238452842,3.78173,2644.3,2643.8,3.78241]
[1729238453043,3.78186,2644.2,2643.8,0.96911685]
[1729238453443,0.7577,2644.1,2643.6,0.77945565]
[1729238453686,3.68316259,2644.2,2643.2,0.39484885]
[1729238453687,0.7577,2643.6,2643.2,0.39484885]
[1729238453889,0.44408626,2644.0,2643.2,0.39484885]
[1729238454039,0.44408626,2644.0,2643.5,3.78285]
[1729238454040,0.7577,2643.9,2643.5,3.78285]
[1729238454493,0.7577,2643.9,2643.6,3.7827]
[1729238454689,0.7577,2643.9,2643.5,3.78285]
[1729238454895,0.7577,2643.9,2643.5,3.78278]
[1729238455219,0.7577,2643.9,2643.5,3.78276]
[1729238455421,0.7577,2643.9,2643.4,3.78299]
[1729238455578,0.7577,2643.9,2643.5,3.78284]
[1729238456113,3.78209,2644.1,2643.5,7.56561]
[1729238456270,3.78215,2644.0,2643.5,3.78277]
[1729238456465,3.7822,2644.0,2643.3,3.78305]
[1729238456667,4.617789,2644.1,2643.3,3.78301]
[1729238456870,3.78215,2644.0,2643.5,3.78284]
[1729238457111,4.617789,2644.1,2643.5,3.78284]
[1729238457668,8.399869,2644.1,2643.5,3.78284]
[1729238457964,3.78208,2644.1,2643.5,7.56559]
[1729238458159,3.78208,2644.1,2643.5,3.78275]
[1729238458378,4.56639,2644.4,2643.7,0.8081]
[1729238458687,3.78174,2644.3,2643.8,3.78231]
[1729238459447,3.78187,2644.2,2643.7,0.8081]
[1729238459647,0.834841,2644.2,2643.6,3.78263]
[1729238459863,3.78186,2644.2,2643.6,3.0]
[1729238460098,3.7824,2643.9,2643.4,3.78299]
[1729238460267,4.5594,2643.9,2643.4,3.78299]
[1729238460469,8.34178,2643.9,2643.4,3.78299]
[1729238460787,4.56979,2644.4,2643.7,3.78245]
[1729238460993,4.56979,2644.4,2643.8,0.7572]
[1729238461306,5.404924,2644.4,2643.9,3.78228]
[1729238462189,3.01,2645.1,2643.7,3.78245]
[1729238462190,8.593334,2645.3,2644.0,0.7572]
[1729238462395,7.56154,2645.0,2644.4,3.78149]
[1729238462548,1.243334,2645.3,2644.1,6.78191]
[1729238462549,3.78102,2644.8,2644.1,6.78191]
[1729238462749,4.58032,2644.8,2644.2,3.78175]
[1729238463205,0.7993,2644.8,2644.3,3.78161]